fUSD/lending_fUSD_20241223
["ID","MTS","AMOUNT","RATE_DAILY","PERIOD"]
[346434823,1734976231760,-700.0,0.00015068,2]
[346434824,1734976231770,-250.0,0.00015618,2]
[346434825,1734976231779,-250.0,0.00015637,2]
[346434826,1734976231789,-1041.97,0.00015638,2]
[346434827,1734976231798,-200.0,0.00015642,2]
[346434828,1734976231808,-200.0,0.00015643,2]
[346434829,1734976231817,-1000.0,0.00015651,2]
[346434830,1734976231826,-1437.07,0.00015663,2]
[346434831,1734976231835,-6874.32,0.00015698,2]
[346434832,1734976231845,-974.63,0.00015699,2]
[346434833,1734976231854,-23900.0,0.00015703,2]
[346434834,1734976231863,-250.0,0.00015704,2]
[346434835,1734976231872,-356.45,0.00015709,2]
[346434836,1734976231882,-555.6,0.00015727,2]
[346434837,1734976231891,-150.0,0.0001573,2]
[346434838,1734976231900,-1924.63,0.0001574,2]
[346434839,1734976231910,-2247.03,0.00015746,2]
[346434840,1734976231921,-167.27,0.0001588,2]
[346434841,1734976231930,-300.0,0.00015906,2]
[346434842,1734976231939,-689.94,0.00015975,2]
[346434843,1734976231948,-500.0,0.00016164,2]
[346434844,1734976231958,-37947.19089851,0.0001627,2]
[346434845,1734976232048,-17937.98783675,0.0001627,2]
[346434846,1734976232259,-22951.82126474,0.0001627,2]
[346434847,1734976232269,-700.0,0.00016438,2]
[346434848,1734976232279,-185.71,0.00016444,2]
[346434849,1734976232288,-327.34,0.00016552,2]
[346434850,1734976232298,-327.34,0.00016556,2]
[346434851,1734976232307,-327.34,0.0001656,2]
[346434852,1734976232317,-150.0,0.00016561,2]
[346434853,1734976232327,-327.34,0.00016565,2]
[346434854,1734976232335,-327.34,0.00016569,2]
[346434855,1734976232345,-150.0,0.0001657,2]
[346434856,1734976232354,-150.0,0.0001657,2]
[346434857,1734976232364,-150.0,0.0001657,2]
[346434858,1734976232373,-150.0,0.0001657,2]
[346434859,1734976232383,-150.0,0.0001657,2]
[346434860,1734976232393,-150.0,0.0001657,2]
[346434861,1734976232403,-327.34,0.00016574,2]
[346434862,1734976232412,-150.0,0.00016576,2]
[346434863,1734976232423,-327.34,0.00016578,2]
[346434864,1734976232432,-327.34,0.00016582,2]
[346434865,1734976232442,-327.34,0.00016587,2]
[346434866,1734976232451,-327.34,0.00016591,2]
[346434867,1734976232461,-327.34,0.00016595,2]
[346434868,1734976232470,-327.34,0.000166,2]
[346434869,1734976232479,-327.34,0.00016604,2]
[346434870,1734976232488,-327.34,0.00016608,2]
[346434871,1734976232498,-200.0,0.00016613,2]
[346434872,1734976232507,-327.34,0.00016613,2]
[346434873,1734976232517,-327.34,0.00016617,2]
[346434874,1734976232526,-327.34,0.00016621,2]
[346434875,1734976232535,-327.34,0.00016626,2]
[346434876,1734976232545,-327.34,0.0001663,2]
[346434877,1734976232554,-327.34,0.00016635,2]
[346434878,1734976232565,-170.43,0.00016658,30]
[346434879,1734976232574,-150.0,0.00016693,2]
[346434881,1734976232583,-150.0,0.00016693,2]
[346434883,1734976232592,-150.0,0.00016715,2]
[346434885,1734976232602,-150.0,0.00016723,2]
[346434887,1734976232611,-1500.0,0.00016727,2]
[346434888,1734976232621,-1345.59,0.00016742,2]
[346434889,1734976232631,-150.0,0.00016747,2]
[346434890,1734976232640,-150.0,0.00016754,2]
[346434891,1734976232650,-150.0,0.00016815,2]
[346434892,1734976232659,-150.0,0.00016838,2]
[346434893,1734976232669,-150.0,0.00016877,2]
[346434894,1734976232678,-150.0,0.00016938,2]
[346434895,1734976232688,-150.0,0.00016938,2]
[346434896,1734976232698,-1000.0,0.00016978,2]
[346434897,1734976232707,-150.0,0.00017001,2]
[346434898,1734976232717,-150.0,0.0001703,2]
[346434899,1734976232726,-150.0,0.00017061,2]
[346434900,1734976232735,-150.0,0.00017122,2]
[346434901,1734976232744,-150.0,0.00017184,2]
[346434902,1734976232754,-150.0,0.00017184,2]
[346434903,1734976232763,-150.0,0.0001722,2]
[346434904,1734976232772,-150.0,0.00017226,2]
[346434905,1734976232781,-3668.32,0.00017255,2]
[346434906,1734976232790,-3105.64,0.00017255,2]
[346434907,1734976232800,-6139.9,0.00017255,2]
[346434908,1734976232810,-572.27,0.00017255,2]
[346434909,1734976232819,-4877.36,0.00017255,2]
[346434910,1734976232828,-6216.25,0.00017255,2]
[346434911,1734976232838,-9719.76,0.00017255,2]
[346434912,1734976232847,-5256.15,0.00017255,2]
[346434913,1734976232857,-4758.19,0.00017255,2]
[346434914,1734976232866,-31030.48,0.00017255,2]
[346434915,1734976232876,-1368.67,0.00017255,2]
[346434916,1734976232885,-3970.81,0.00017255,2]
[346434917,1734976232895,-300.0,0.00017286,2]
[346434918,1734976232904,-150.0,0.00017306,2]
[346434919,1734976232913,-150.0,0.00017306,2]
[346434920,1734976232925,-150.0,0.00017337,2]
[346434921,1734976232934,-1712.36,0.00017355,2]
[346434922,1734976232944,-1656.70795901,0.00017355,2]
[346434927,1734976237644,-386.21,0.0001568,2]
[346434928,1734976237654,-500.0,0.00017255,2]
[346434929,1734976237664,-239.83902932,0.00017255,2]
[346434930,1734976237873,-260.16097068,0.00017255,2]
[346434931,1734976237883,-2167.65204099,0.00017355,2]
[346434932,1734976237892,-3449.34,0.00017356,2]
[346434933,1734976237901,-500.0,0.00017356,2]
[346434934,1734976237911,-1099.2,0.00017356,2]
[346434935,1734976237920,-2497.42,0.00017356,2]
[346434936,1734976237929,-748.44,0.00017356,2]
[346434937,1734976237939,-1691.85,0.00017356,2]
[346434939,1734976237948,-2909.84,0.00017356,2]
[346434941,1734976237958,-2561.49,0.00017356,2]
[346434944,1734976237968,-3010.91,0.00017356,2]
[346434946,1734976237977,-1933.18,0.00017356,2]
[346434947,1734976237986,-1582.83,0.00017356,2]
[346434949,1734976237996,-1311.89,0.00017356,2]
[346434952,1734976238005,-1529.88,0.00017356,2]
[346434954,1734976238014,-500.0,0.00017356,2]
[346434955,1734976238023,-2391.22,0.00017356,2]
[346434957,1734976238033,-1242.99,0.00017356,2]
[346434959,1734976238042,-500.0,0.00017356,2]
[346434961,1734976238051,-500.0,0.00017356,2]
[346434964,1734976238065,-3029.23,0.00017356,2]
[346434965,1734976238074,-500.0,0.00017356,2]
[346434967,1734976238083,-2772.57,0.00017356,2]
[346434969,1734976238092,-688.34,0.00017356,2]
[346434971,1734976238101,-500.0,0.00017356,2]
[346434973,1734976238110,-1072.85,0.00017356,2]
[346434975,1734976238124,-674.77,0.00017356,2]
[346434977,1734976238133,-725.19,0.00017356,2]
[346434979,1734976238142,-596.28,0.00017356,2]
[346434981,1734976238151,-500.0,0.00017356,2]
[346434983,1734976238160,-662.51,0.00017356,2]
[346434985,1734976238171,-1683.81,0.00017356,2]
[346434987,1734976238180,-2543.19,0.00017356,2]
[346434990,1734976238189,-1972.25,0.00017356,2]
[346434993,1734976238198,-2122.72,0.00017356,2]
[346434996,1734976238209,-749.44,0.00017356,2]
[346434999,1734976238219,-3015.06,0.00017356,2]
[346435002,1734976238228,-1211.32,0.00017356,2]
[346435004,1734976238238,-4007.74,0.00017356,2]
[346435006,1734976238247,-1710.03,0.00017356,2]
[346435008,1734976238256,-2762.56,0.00017356,2]
[346435010,1734976238265,-500.0,0.00017356,2]
[346435012,1734976238275,-941.99,0.00017356,2]
[346435014,1734976238284,-1494.1,0.00017356,2]
[346435016,1734976238294,-655.47,0.00017356,2]
[346435018,1734976238303,-3183.62,0.00017356,2]
[346435020,1734976238313,-500.0,0.00017356,2]
[346435022,1734976238322,-2055.21,0.00017356,2]
[346435024,1734976238332,-812.54,0.00017356,2]
[346435026,1734976238341,-894.06,0.00017356,2]
[346435028,1734976238350,-3208.1,0.00017356,2]
[346435029,1734976238359,-822.42,0.00017356,2]
[346435031,1734976238369,-1847.86,0.00017356,2]
[346435032,1734976238378,-3179.99,0.00017356,2]
[346435033,1734976238387,-17388.13929104,0.00017356,2]
[346435034,1734976238396,-2458.94,0.00017356,2]
[346435035,1734976238406,-1438.53,0.00017356,2]
[346435036,1734976238415,-1112.8785,0.00017407,2]
[346435037,1734976238429,-150.0,0.00017422,2]
[346435038,1734976238445,-150.0,0.00017429,2]
[346435039,1734976238454,-1347.45,0.00017442,2]
[346435040,1734976238463,-7463.7,0.00017442,2]
[346435041,1734976238472,-2209.86,0.00017442,2]
[346435042,1734976238483,-7306.9,0.00017442,2]
[346435043,1734976238492,-11315.94,0.00017442,2]
[346435044,1734976238502,-6484.06,0.00017442,2]
[346435045,1734976238511,-9954.65,0.00017442,2]
[346435046,1734976238523,-1746.05,0.00017442,2]
[346435047,1734976238533,-3906.33,0.00017442,2]
[346435048,1734976238542,-5000.0,0.00017443,2]
[346435049,1734976238552,-263.41994214,0.00017446,2]
[346435050,1734976238561,-221.0016896,0.00017448,2]
[346435051,1734976238571,-17388.13929101,0.00017451,2]
[346435052,1734976238580,-653.4,0.00017456,2]
[346435053,1734976238590,-500.0,0.00017456,2]
[346435054,1734976238600,-615.49,0.00017456,2]
[346435055,1734976238609,-500.0,0.00017456,2]
[346435056,1734976238618,-635.02,0.00017456,2]
[346435057,1734976238627,-1422.84,0.00017456,2]
[346435058,1734976238636,-780.62,0.00017456,2]
[346435059,1734976238646,-501.55087084,0.00017456,2]
[346435061,1734976238655,-281.17951881,0.00017456,2]
[346435062,1734976238664,-500.0,0.00017456,2]
[346435064,1734976238673,-535.44,0.00017456,2]
[346435066,1734976238682,-500.0,0.00017456,2]
[346435067,1734976238692,-888.45,0.00017456,2]
[346435069,1734976238701,-500.0,0.00017456,2]
[346435070,1734976238711,-1318.89,0.00017456,2]
[346435071,1734976238720,-1124.02,0.00017456,2]
[346435072,1734976238729,-500.0,0.00017456,2]
[346435073,1734976238738,-500.0,0.00017456,2]
[346435074,1734976238747,-500.0,0.00017456,2]
[346435075,1734976238757,-501.61706296,0.00017456,2]
[346435076,1734976238766,-594.58,0.00017456,2]
[346435077,1734976238775,-514.71,0.00017456,2]
[346435078,1734976238785,-500.0,0.00017456,2]
[346435079,1734976238794,-587.41,0.00017456,2]
[346435080,1734976238803,-500.0,0.00017456,2]
[346435081,1734976238812,-500.0,0.00017456,2]
[346435082,1734976238822,-500.0,0.00017456,2]
[346435083,1734976238831,-507.21,0.00017456,2]
[346435084,1734976238841,-1087.06,0.00017456,2]
[346435085,1734976238850,-500.0,0.00017456,2]
[346435086,1734976238859,-500.0,0.00017456,2]
[346435087,1734976238869,-500.0,0.00017456,2]
[346435088,1734976238878,-2627.33,0.00017456,2]
[346435089,1734976238887,-1265.05,0.00017456,2]
[346435090,1734976238897,-556.69,0.00017456,2]
[346435091,1734976238907,-500.0,0.00017456,2]
[346435092,1734976238917,-1399.19,0.00017456,2]
[346435093,1734976238926,-1619.07,0.00017456,2]
[346435094,1734976238944,-500.0,0.00017456,2]
[346435095,1734976238953,-500.0,0.00017456,2]
[346435096,1734976238962,-16046.65,0.00017456,2]
[346435097,1734976238972,-500.0,0.00017456,2]
[346435098,1734976238981,-1307.19,0.00017456,2]
[346435099,1734976238992,-4124.3,0.00017456,2]
[346435100,1734976239002,-1406.69,0.00017456,2]
[346435101,1734976239011,-500.0,0.00017456,2]
[346435102,1734976239020,-701.63,0.00017456,2]
[346435103,1734976239032,-1394.24,0.00017456,2]
[346435104,1734976239042,-500.0,0.00017456,2]
[346435105,1734976239051,-792.86,0.00017456,2]
[346435106,1734976239061,-500.0,0.00017456,2]
[346435107,1734976239070,-1890.35,0.00017456,2]
[346435108,1734976239079,-500.0,0.00017456,2]
[346435109,1734976239089,-500.0,0.00017456,2]
[346435110,1734976239098,-554.92,0.00017456,2]
[346435111,1734976239108,-500.0,0.00017456,2]
[346435112,1734976239118,-500.0,0.00017456,2]
[346435113,1734976239127,-183.88472927,0.00017456,2]
[346435114,1734976239139,-500.0,0.00017456,2]
[346435115,1734976239148,-8089.32,0.00017456,2]
[346435116,1734976239158,-500.0,0.00017456,2]
[346435117,1734976239167,-500.0,0.00017456,2]
[346435118,1734976239176,-883.35,0.00017456,2]
[346435119,1734976239188,-914.35,0.00017456,2]
[346435120,1734976239198,-787.22,0.00017456,2]
[346435121,1734976239208,-500.0,0.00017456,2]
[346435122,1734976239218,-500.0,0.00017456,2]
[346435123,1734976239227,-4570.23,0.00017456,2]
[346435124,1734976239237,-826.39,0.00017456,2]
[346435125,1734976239247,-500.0,0.00017456,2]
[346435126,1734976239256,-500.0,0.00017456,2]
[346435127,1734976239266,-2703.26,0.00017456,2]
[346435128,1734976239275,-1464.23,0.00017456,2]
[346435129,1734976239285,-2532.79,0.00017456,2]
[346435130,1734976239294,-1162.27,0.00017456,2]
[346435131,1734976239304,-500.0,0.00017456,2]
[346435132,1734976239314,-500.0,0.00017456,2]
[346435133,1734976239324,-500.0,0.00017456,2]
[346435134,1734976239334,-6232.45,0.00017456,2]
[346435135,1734976239344,-757.86,0.00017456,2]
[346435136,1734976239353,-4985.91,0.00017456,2]
[346435137,1734976239362,-500.0,0.00017456,2]
[346435138,1734976239371,-500.0,0.00017456,2]
[346435139,1734976239381,-764.95,0.00017456,2]
[346435140,1734976239391,-507.08110093,0.00017456,2]
[346435141,1734976239400,-500.0,0.00017456,2]
[346435142,1734976239410,-3809.88,0.00017456,2]
[346435143,1734976239419,-500.0,0.00017456,2]
[346435144,1734976239429,-651.3,0.00017456,2]
[346435145,1734976239439,-500.0,0.00017456,2]
[346435146,1734976239448,-500.0,0.00017456,2]
[346435147,1734976239457,-8445.75,0.00017456,2]
[346435148,1734976239466,-500.0,0.00017456,2]
[346435149,1734976239476,-500.0,0.00017456,2]
[346435150,1734976239485,-16806.36,0.00017456,2]
[346435151,1734976239494,-500.0,0.00017456,2]
[346435152,1734976239504,-682.86,0.00017456,2]
[346435153,1734976239513,-500.0,0.00017456,2]
[346435154,1734976239522,-623.61,0.00017456,2]
[346435155,1734976239532,-820.81,0.00017456,2]
[346435156,1734976239541,-864.14,0.00017456,2]
[346435157,1734976239550,-500.0,0.00017456,2]
[346435158,1734976239559,-500.0,0.00017456,2]
[346435159,1734976239567,-698.39,0.00017456,2]
[346435160,1734976239576,-23345.01,0.00017456,2]
[346435161,1734976239585,-666.33,0.00017456,2]
[346435162,1734976239594,-3637.71,0.00017456,2]
[346435163,1734976239603,-1677.82,0.00017456,2]
[346435164,1734976239612,-500.0,0.00017456,2]
[346435165,1734976239622,-500.0,0.00017456,2]
[346435166,1734976239630,-500.0,0.00017456,2]
[346435167,1734976239639,-590.70380565,0.00017456,2]
[346435168,1734976239648,-500.0,0.00017456,2]
[346435169,1734976239657,-5862.02,0.00017456,2]
[346435170,1734976239666,-510.49,0.00017456,2]
[346435171,1734976239675,-500.0,0.00017456,2]
[346435172,1734976239684,-2689.8,0.00017456,2]
[346435173,1734976239693,-4733.77,0.00017456,2]
[346435174,1734976239702,-500.0,0.00017456,2]
[346435175,1734976239711,-514.97,0.00017456,2]
[346435176,1734976239720,-500.0,0.00017456,2]
[346435177,1734976239729,-501.76005484,0.00017456,2]
[346435178,1734976239738,-500.0,0.00017456,2]
[346435179,1734976239747,-782.33,0.00017456,2]
[346435180,1734976239756,-4453.49,0.00017456,2]
[346435181,1734976239765,-4040.54,0.00017456,2]
[346435182,1734976239774,-500.0,0.00017456,2]
[346435183,1734976239783,-500.0,0.00017456,2]
[346435184,1734976239793,-500.0,0.00017456,2]
[346435185,1734976239802,-5973.25,0.00017456,2]
[346435186,1734976239812,-500.0,0.00017456,2]
[346435187,1734976239821,-925.52,0.00017456,2]
[346435188,1734976239830,-5119.36,0.00017456,2]
[346435189,1734976239839,-937.17,0.00017456,2]
[346435190,1734976239848,-10559.14,0.00017456,2]
[346435191,1734976239857,-500.0,0.00017456,2]
[346435192,1734976239866,-15244.16,0.00017456,2]
[346435193,1734976239875,-500.0,0.00017456,2]
[346435194,1734976239883,-746.69,0.00017456,2]
[346435195,1734976239893,-5986.27,0.00017456,2]
[346435196,1734976239902,-1795.76,0.00017456,2]
[346435197,1734976239912,-1518.05,0.00017456,2]
[346435198,1734976239920,-505.72503023,0.00017456,2]
[346435199,1734976239930,-500.0,0.00017456,2]
[346435200,1734976239939,-500.0,0.00017456,2]
[346435201,1734976239948,-17616.5,0.00017456,2]
[346435202,1734976239957,-747.64,0.00017456,2]
[346435203,1734976239966,-100226.638,0.00017457,2]
[346435204,1734976239975,-150.0,0.0001749,2]
[346435205,1734976239984,-150.0,0.0001749,2]
[346435206,1734976239993,-591.438,0.000175,2]
[346435207,1734976240001,-168.99,0.00017503,2]
[346435208,1734976240010,-3668.32,0.00017529,2]
[346435209,1734976240019,-3105.64,0.00017529,2]
[346435210,1734976240028,-6139.9,0.00017529,2]
[346435211,1734976240037,-572.27,0.00017529,2]
[346435212,1734976240046,-4877.36,0.00017529,2]
[346435213,1734976240056,-6216.25,0.00017529,2]
[346435214,1734976240065,-9719.76,0.00017529,2]
[346435215,1734976240075,-5256.15,0.00017529,2]
[346435216,1734976240084,-4758.19,0.00017529,2]
[346435217,1734976240093,-31030.48,0.00017529,2]
[346435219,1734976240103,-1368.67,0.00017529,2]
[346435220,1734976240112,-3970.81,0.00017529,2]
[346435221,1734976240126,-500.0,0.00017529,2]
[346435222,1734976240136,-500.0,0.00017529,2]
[346435223,1734976240145,-500.0,0.00017543,2]
[346435224,1734976240155,-499.1988,0.00017543,2]
[346435225,1734976240166,-438.82462211,0.00017543,2]
[346435226,1734976240175,-500.0,0.00017543,2]
[346435227,1734976240186,-500.0,0.00017543,2]
[346435228,1734976240195,-500.0,0.00017543,2]
[346435229,1734976240207,-825.9,0.00017543,2]
[346435230,1734976240217,-498.90339646,0.00017543,2]
[346435231,1734976240226,-500.0,0.00017543,2]
[346435232,1734976240236,-1517.67,0.00017543,2]
[346435233,1734976240245,-500.0,0.00017543,2]
[346435234,1734976240254,-564.66,0.00017543,2]
[346435235,1734976240263,-516.53,0.00017543,2]
[346435236,1734976240272,-150.0,0.00017543,2]
[346435237,1734976240282,-500.0,0.00017543,2]
[346435238,1734976240291,-500.0,0.00017543,2]
[346435239,1734976240300,-500.0,0.00017543,2]
[346435240,1734976240310,-500.0,0.00017543,2]
[346435241,1734976240319,-500.0,0.00017543,2]
[346435242,1734976240329,-2668.62,0.00017543,2]
[346435243,1734976240338,-500.0,0.00017543,2]
[346435244,1734976240348,-500.0,0.00017543,2]
[346435245,1734976240357,-500.0,0.00017543,2]
[346435246,1734976240367,-500.0,0.00017543,2]
[346435247,1734976240376,-862.98,0.00017543,2]
[346435248,1734976240385,-500.0,0.00017543,2]
[346435249,1734976240395,-500.0,0.00017543,2]
[346435250,1734976240403,-500.0,0.00017543,2]
[346435251,1734976240413,-500.0,0.00017543,2]
[346435252,1734976240422,-500.0,0.00017543,2]
[346435253,1734976240432,-500.0,0.00017543,2]
[346435254,1734976240441,-500.0,0.00017543,2]
[346435255,1734976240450,-505.41,0.00017543,2]
[346435256,1734976240460,-500.0,0.00017543,2]
[346435257,1734976240708,-539.27,0.00017543,2]
[346435258,1734976240720,-500.0,0.00017543,2]
[346435259,1734976240730,-500.0,0.00017543,2]
[346435260,1734976240739,-2534.69,0.00017543,2]
[346435261,1734976240749,-437.74403494,0.00017543,2]
[346435262,1734976240758,-500.0,0.00017543,2]
[346435263,1734976240767,-960.48,0.00017543,2]
[346435264,1734976240776,-505.46544462,0.00017543,2]
[346435265,1734976240785,-2575.85,0.00017543,2]
[346435266,1734976240794,-305.04914211,0.00017543,2]
[346435267,1734976240803,-749.68,0.00017543,2]
[346435268,1734976240812,-603.48094754,0.00017543,2]
[346435269,1734976240822,-500.0,0.00017543,2]
[346435270,1734976240831,-1282.79,0.00017543,2]
[346435271,1734976240840,-502.85400895,0.00017543,2]
[346435272,1734976240849,-1346.35,0.00017543,2]
[346435273,1734976240858,-500.0,0.00017543,2]
[346435274,1734976240867,-500.0,0.00017543,2]
[346435275,1734976240876,-658.92,0.00017543,2]
[346435276,1734976240885,-500.0,0.00017543,2]
[346435277,1734976240894,-500.0,0.00017543,2]
[346435278,1734976240904,-500.0,0.00017543,2]
[346435279,1734976240913,-847.62,0.00017543,2]
[346435280,1734976240923,-500.0,0.00017543,2]
[346435281,1734976240932,-500.0,0.00017543,2]
[346435282,1734976240942,-5126.11,0.00017543,2]
[346435283,1734976240951,-500.0,0.00017543,2]
[346435284,1734976240960,-7375.2,0.00017543,2]
[346435285,1734976240969,-1468.03,0.00017543,2]
[346435286,1734976240979,-500.0,0.00017543,2]
[346435287,1734976240988,-500.0,0.00017543,2]
[346435288,1734976240998,-7024.69,0.00017543,2]
[346435289,1734976241007,-27031.36,0.00017543,2]
[346435290,1734976241016,-2789.74,0.00017543,2]
[346435291,1734976241026,-500.0,0.00017543,2]
[346435292,1734976241036,-884.61,0.00017543,2]
[346435293,1734976241045,-644.45882397,0.00017543,2]
[346435294,1734976241054,-647.9,0.00017543,2]
[346435295,1734976241064,-500.0,0.00017543,2]
[346435296,1734976241073,-5982.48,0.00017543,2]
[346435297,1734976241083,-500.0,0.00017543,2]
[346435298,1734976241092,-500.0,0.00017543,2]
[346435299,1734976241102,-500.0,0.00017543,2]
[346435300,1734976241112,-500.0,0.00017543,2]
[346435301,1734976241126,-500.0,0.00017543,2]
[346435302,1734976241135,-620.34,0.00017543,2]
[346435303,1734976241145,-500.0,0.00017543,2]
[346435304,1734976241154,-1001.91,0.00017543,2]
[346435305,1734976241164,-365.01224451,0.00017543,2]
[346435306,1734976241175,-579.06,0.00017543,2]
[346435307,1734976241188,-500.0,0.00017543,2]
[346435308,1734976241198,-307.601811,0.00017543,2]
[346435309,1734976241209,-641.11,0.00017543,2]
[346435310,1734976241219,-3469.32,0.00017543,2]
[346435311,1734976241230,-4704.67,0.00017543,2]
[346435312,1734976241239,-495.70178101,0.00017543,2]
[346435313,1734976241248,-3969.53,0.00017543,2]
[346435314,1734976241258,-282.62930031,0.00017543,2]
[346435315,1734976241267,-1456.66,0.00017543,2]
[346435316,1734976241276,-2066.28,0.00017543,2]
[346435317,1734976241286,-500.0,0.00017543,2]
[346435318,1734976241295,-638.09411818,0.00017543,2]
[346435319,1734976241304,-4192.9,0.00017543,2]
[346435320,1734976241313,-1435.66,0.00017543,2]
[346435321,1734976241323,-500.0,0.00017543,2]
[346435322,1734976241332,-4398.29,0.00017543,2]
[346435323,1734976241342,-1662.65,0.00017543,2]
[346435324,1734976241351,-8771.74,0.00017543,2]
[346435325,1734976241360,-1824.12,0.00017543,2]
[346435326,1734976241369,-500.0,0.00017543,2]
[346435327,1734976241379,-6281.74,0.00017543,2]
[346435328,1734976241387,-500.0,0.00017543,2]
[346435329,1734976241397,-500.0,0.00017543,2]
[346435330,1734976241406,-501.08371111,0.00017543,2]
[346435331,1734976241414,-500.0,0.00017543,2]
[346435332,1734976241420,-1833.27,0.00017543,2]
[346435333,1734976241430,-500.0,0.00017543,2]
[346435334,1734976241442,-500.0,0.00017543,2]
[346435335,1734976241451,-5741.87,0.00017543,2]
[346435336,1734976241460,-500.0,0.00017543,2]
[346435337,1734976241470,-2536.19,0.00017543,2]
[346435338,1734976241479,-506.21898552,0.00017543,2]
[346435339,1734976241488,-896.26,0.00017543,2]
[346435340,1734976241497,-16415.71,0.00017543,2]
[346435341,1734976241507,-500.0,0.00017546,2]
[346435342,1734976241517,-5622.56,0.00017546,2]
[346435343,1734976241526,-9319.41,0.00017546,2]
[346435344,1734976241535,-6009.65,0.00017546,2]
[346435345,1734976241546,-1615.24,0.00017546,2]
[346435346,1734976241555,-5064.54,0.00017546,2]
[346435347,1734976241564,-14077.6,0.00017546,2]
[346435348,1734976241573,-12761.71,0.00017546,2]
[346435349,1734976241582,-11993.86,0.00017546,2]
[346435350,1734976241591,-3367.24,0.00017546,2]
[346435351,1734976241600,-11304.97,0.00017546,2]
[346435352,1734976241609,-3462.96,0.00017546,2]
[346435353,1734976241618,-1364.64,0.00017546,2]
[346435354,1734976241627,-3082.67,0.00017546,2]
[346435355,1734976241637,-2273.82,0.00017546,2]
[346435356,1734976241646,-12836.76,0.00017546,2]
[346435357,1734976241656,-4006.03,0.00017546,2]
[346435358,1734976241665,-4920.03,0.00017546,2]
[346435359,1734976241674,-4792.68,0.00017546,2]
[346435360,1734976241685,-3385.15,0.00017546,2]
[346435361,1734976241694,-5349.99,0.00017546,2]
[346435362,1734976241704,-17388.13929101,0.00017547,2]
[346435363,1734976241714,-1315.14,0.00017547,2]
[346435364,1734976241723,-5620.53,0.00017547,2]
[346435365,1734976241732,-10051.76,0.00017547,2]
[346435366,1734976241742,-11019.08,0.00017547,2]
[346435367,1734976241751,-53047.52,0.00017547,2]
[346435368,1734976241760,-3709.46,0.00017547,2]
[346435369,1734976241769,-7080.87,0.00017547,2]
[346435370,1734976241779,-4261.14,0.00017547,2]
[346435371,1734976241788,-2996.88,0.00017547,2]
[346435372,1734976241797,-7372.72,0.00017547,2]
[346435373,1734976241806,-38290.66,0.00017547,2]
[346435374,1734976241815,-2010.08,0.00017547,2]
[346435375,1734976241825,-5608.47,0.00017547,2]
[346435376,1734976241834,-4919.45,0.00017547,2]
[346435377,1734976241843,-3790.52,0.00017547,2]
[346435378,1734976241853,-7084.37,0.00017547,2]
[346435379,1734976241862,-741.4,0.00017547,2]
[346435380,1734976241871,-1730.98,0.00017547,2]
[346435381,1734976241880,-3885.77,0.00017547,2]
[346435382,1734976241889,-4626.44,0.00017547,2]
[346435383,1734976241898,-1427.67,0.00017547,2]
[346435384,1734976241907,-8693.39,0.00017547,2]